bitfinex/quotes_SOLUSD_20241113
["timestamp","ask_amount","ask_price","bid_price","bid_amount"]
[1731494118869,0.12549,207.01,206.95,22.39118755]
[1731494119189,22.51667755,207.01,206.89,6.0666]
[1731494119365,20.0,206.98,206.89,6.0666]
[1731494119563,0.12549,206.97,206.91,22.39118755]
[1731494120783,22.51667755,206.99,206.91,22.39118755]
[1731494121282,0.12549,206.99,206.93,22.39118755]
[1731494121482,23.776884,207.04,206.97,22.39118755]
[1731494121671,0.12549,207.03,206.97,22.39118755]
[1731494121880,22.51667755,207.03,206.97,22.39118755]
[1731494122080,22.51667755,207.03,206.95,22.39118755]
[1731494122579,27.34697755,207.03,206.95,22.39118755]
[1731494123564,20.12549,207.0,206.93,22.39118755]
[1731494123765,20.12549,206.98,206.91,22.39118755]
[1731494123964,0.12549,206.96,206.87,22.39118755]
[1731494124210,0.12549,206.92,206.85,22.39118755]
[1731494124493,4.95869,206.9,206.83,22.87699105]
[1731494124663,0.12549,206.88,206.83,0.4858035]
[1731494126380,22.39118755,206.91,206.83,22.87699105]
[1731494126682,0.1,206.96,206.85,22.39118755]
[1731494126683,24.8329,206.92,206.85,22.39118755]
[1731494126885,0.12549,206.9,206.83,334.87699105]
[1731494127588,0.12549,206.9,206.83,22.87699105]
[1731494127770,4.95869,206.9,206.83,22.87699105]
[1731494128170,0.12549,206.9,206.83,22.87699105]
[1731494128367,4.8334,206.89,206.83,22.87699105]
[1731494128578,0.12549,206.88,206.83,0.4858035]
[1731494128783,27.22458755,206.89,206.83,0.4858035]
[1731494128784,20.12549,206.86,206.83,0.4858035]
[1731494128996,0.12549,206.84,206.83,0.4858035]
[1731494129678,4.96009,206.84,206.83,0.4858035]
[1731494129970,0.12549,206.84,206.83,0.4858035]
[1731494131985,43.902374,206.84,206.83,0.4858035]
[1731494132295,0.12549,206.76,206.69,22.39118755]
[1731494132473,20.12549,206.74,206.67,22.39118755]
[1731494132790,20.12549,206.74,206.63,6.5673035]
[1731494132791,0.12549,206.72,206.65,22.39118755]
[1731494133102,20.12549,206.68,206.63,0.4858035]
[1731494133469,0.12549,206.66,206.63,0.4858035]
[1731494133866,20.0,206.72,206.65,22.39118755]
[1731494134391,20.0,206.74,206.68,22.39118755]
[1731494134790,20.0,206.74,206.63,0.4858035]
[1731494134791,0.12549,206.73,206.7,22.39118755]
[1731494135172,22.39118755,206.81,206.72,22.39118755]
[1731494135370,22.39118755,206.83,206.75,22.39118755]
[1731494135583,33.45248755,206.84,206.76,22.39118755]
[1731494135972,22.39118755,206.88,206.8,22.39118755]
[1731494136177,28.52768755,206.9,206.82,22.39118755]
[1731494136688,33.36098755,206.9,206.82,22.39118755]
[1731494136866,0.12549,206.89,206.82,22.39118755]
[1731494137385,0.12549,206.85,206.78,22.39118755]
[1731494137591,0.12549,206.83,206.76,22.39118755]
[1731494137789,0.12549,206.83,206.75,22.39118755]
[1731494138090,23.902374,206.81,206.73,22.39118755]
[1731494138295,0.12549,206.79,206.73,22.39118755]
[1731494138898,20.0,206.78,206.73,22.39118755]
[1731494139072,0.12549,206.79,206.73,22.39118755]
[1731494139596,162.1,206.85,206.77,22.39118755]
[1731494139597,20.0,206.81,206.77,22.39118755]
[1731494139782,0.1,206.87,206.79,22.39118755]
[1731494139783,28.610984,206.86,206.79,22.39118755]
[1731494140293,0.12549,206.85,206.81,22.39118755]
[1731494140801,0.12549,206.86,206.81,36.42600757]
[1731494141497,4.8336,206.89,206.83,36.42600757]
[1731494141875,0.12549,206.88,206.83,36.42600757]
[1731494142277,4.8336,206.89,206.83,36.42600757]
[1731494142697,24.8336,206.89,206.81,36.42600757]
[1731494142991,0.12549,206.88,206.81,36.42600757]
[1731494143193,0.12549,206.88,206.83,36.42600757]
[1731494143776,28.736174,206.88,206.83,36.42600757]
[1731494143974,0.12549,206.88,206.83,36.42600757]
[1731494144176,41.25850757,206.94,206.85,36.42600757]
[1731494144390,6.0438,206.95,206.87,36.42600757]
[1731494144592,0.12549,206.94,206.87,36.42600757]
[1731494144895,36.55149757,206.94,206.87,36.42600757]
[1731494145096,10.8759,206.95,206.87,36.42600757]
[1731494145297,16.60781238,207.0,206.89,36.42600757]
[1731494145298,36.42600757,206.98,206.89,36.42600757]
[1731494145483,4.8317,206.97,206.91,36.42600757]
[1731494145681,4.8317,206.97,206.89,36.42600757]
[1731494145989,36.42600757,206.96,206.89,36.42600757]
[1731494146297,0.12549,206.95,206.89,36.42600757]
[1731494146500,0.12549,206.95,206.87,36.42600757]
[1731494146721,0.12549,206.91,206.85,36.42600757]
[1731494147005,20.12549,206.89,206.83,36.42600757]
[1731494147376,0.12549,206.87,206.81,36.42600757]
[1731494147573,20.12549,206.87,206.81,36.42600757]
[1731494147795,24.95949,206.87,206.81,36.42600757]
[1731494148384,20.12549,206.85,206.79,36.42600757]
[1731494148795,0.12549,206.83,206.77,36.42600757]
[1731494148977,0.12549,206.83,206.71,15.8162]
[1731494148978,0.12549,206.83,206.79,36.42600757]
[1731494149803,4.96039,206.83,206.79,36.42600757]
[1731494150881,4.96039,206.83,206.77,36.42600757]
[1731494151077,23.776884,206.82,206.77,36.42600757]
[1731494151283,20.12549,206.81,206.77,36.42600757]
[1731494151489,20.12549,206.81,206.75,36.42600757]
[1731494151986,4.8355,206.8,206.75,36.42600757]
[1731494152198,0.12549,206.79,206.75,36.42600757]
[1731494153481,23.902374,206.79,206.73,36.42600757]
[1731494154289,23.902374,206.77,206.73,36.42600757]
[1731494154906,0.12549,206.77,206.73,36.42600757]
[1731494155384,4.836,206.78,206.73,36.42600757]
[1731494155385,0.12549,206.78,206.73,36.42600757]
[1731494155601,0.12549,206.78,206.75,36.42600757]
[1731494156187,166.835,206.83,206.77,36.42600757]
[1731494156411,166.835,206.83,206.79,36.42600757]
[1731494156714,0.12549,206.82,206.79,36.42600757]
[1731494156889,6.3975,206.88,206.81,36.42600757]
[1731494157090,6.3975,206.88,206.7,36.52600757]
[1731494157091,4.833,206.91,206.85,36.42600757]
[1731494157389,0.12549,206.9,206.85,36.42600757]
[1731494157593,4.833,206.91,206.85,36.42600757]
[1731494157895,6.2827,206.93,206.89,36.42600757]
[1731494158086,4.8323,206.94,206.87,36.42600757]
[1731494158427,4.8323,206.94,206.89,36.42600757]
[1731494158591,4.832,206.96,206.91,36.42600757]
[1731494158787,22.78720123,206.98,206.93,36.42600757]
[1731494159289,0.12549,206.97,206.91,36.42600757]
[1731494159491,0.12549,206.97,206.93,36.42600757]
[1731494159896,22.78720123,206.98,206.93,36.42600757]
[1731494160098,23.776884,206.97,206.93,36.42600757]
[1731494160296,11.47630123,206.98,206.93,36.42600757]
[1731494160494,36.42600757,206.99,206.91,36.42600757]
[1731494160900,0.12549,206.93,206.86,22.39564823]
[1731494161103,0.12549,206.93,206.86,334.39564823]
[1731494161407,0.12549,206.93,206.88,22.39564823]
[1731494161611,0.12549,206.93,206.86,312.0]
[1731494161612,0.12549,206.95,206.92,22.39564823]
[1731494162113,7.26113233,207.04,206.86,312.0]
[1731494162114,6.3252,207.04,206.94,22.39564823]
[1731494162318,162.0,207.09,207.0,22.39564823]
[1731494162616,162.0,207.09,206.9,44.11764823]
[1731494162617,22.39564823,207.07,206.98,22.39564823]
[1731494162790,0.12549,207.06,207.02,22.39564823]
[1731494163309,4.8284,207.11,207.04,22.39564823]
[1731494163503,4.8279,207.13,207.06,22.39564823]
[1731494163817,0.12549,207.12,207.06,22.39564823]
[1731494164314,0.12549,207.1,207.06,22.39564823]
[1731494164823,23.902374,207.1,207.04,36.34455573]
[1731494165007,60.24692973,207.1,207.02,36.34455573]
[1731494165494,23.902374,207.1,207.04,36.34455573]
[1731494165695,23.902374,207.08,207.04,36.34455573]
[1731494166015,20.0,207.12,207.06,36.34455573]
[1731494166316,24.8281,207.12,207.06,36.34455573]
[1731494166614,0.12549,207.11,207.06,36.34455573]
[1731494166803,20.0,207.12,207.06,36.34455573]
[1731494167021,20.0,207.13,207.08,36.34455573]
[1731494167514,0.12549,207.12,207.08,36.34455573]
[1731494167717,0.12549,207.12,207.06,36.34455573]
[1731494167909,52.63927323,207.14,207.06,36.34455573]
[1731494167910,0.12549,207.13,207.06,36.34455573]
[1731494168213,4.95339,207.13,207.06,36.34455573]
[1731494168717,24.95339,207.13,207.06,36.34455573]
[1731494169091,0.12549,207.09,207.02,36.34455573]
[1731494169298,4.95339,207.13,206.91,23.976884]
[1731494169299,20.12549,207.07,207.0,36.34455573]
[1731494169520,20.12549,207.05,207.0,36.34455573]
[1731494169694,0.12549,207.03,207.0,36.34455573]
[1731494169906,0.12549,207.03,206.98,36.34455573]
[1731494170213,20.12549,207.01,206.94,36.34455573]
[1731494170393,166.95539,207.05,206.98,36.34455573]
[1731494170594,166.95539,207.05,206.9,58.06655573]
[1731494170595,162.0,207.05,207.02,36.34455573]
[1731494170797,173.4669175,207.14,207.04,36.34455573]
[1731494170999,173.4669175,207.14,207.0,36.34455573]
[1731494171000,16.2946175,207.14,207.08,36.34455573]
[1731494171206,0.12549,207.11,207.04,36.34455573]
[1731494171418,0.12549,207.11,207.06,36.34455573]
[1731494171615,11.4669175,207.14,207.08,36.34455573]
[1731494171819,11.4669175,207.14,207.0,36.34455573]
[1731494171820,41.17145573,207.18,207.1,36.34455573]
[1731494172129,0.12549,207.17,207.1,36.34455573]
[1731494172297,0.12549,207.15,207.08,36.34455573]
[1731494172613,12.33098169,207.18,207.1,36.34455573]
[1731494172614,41.17145573,207.18,207.1,36.34455573]
[1731494172939,0.12549,207.17,207.1,36.34455573]
[1731494173796,23.902374,207.17,207.1,36.34455573]
[1731494174198,4.826,207.21,207.12,36.34455573]
[1731494174418,36.34455573,207.2,207.12,36.34455573]
[1731494175208,0.12549,207.19,207.12,36.34455573]
[1731494175515,0.83609447,207.24,207.16,36.34455573]
[1731494175516,37.1806502,207.24,207.16,36.34455573]
[1731494175720,176.17270785,207.26,207.1,36.34455573]
[1731494175721,4.825,207.25,207.18,36.34455573]
[1731494176221,36.34455573,207.24,207.16,36.34455573]
[1731494176399,36.34455573,207.24,207.14,36.34455573]
[1731494176400,0.12549,207.23,207.14,36.34455573]
[1731494176719,0.12549,207.23,207.16,36.34455573]
[1731494177094,0.12549,207.21,207.16,36.34455573]
[1731494177415,23.902374,207.21,207.16,36.34455573]
[1731494178401,23.902374,207.19,207.14,36.34455573]
[1731494178909,20.0,207.23,207.16,36.34455573]
[1731494179110,61.17025573,207.23,207.16,36.34455573]
[1731494179314,0.12549,207.22,207.16,36.34455573]
[1731494179999,162.0,207.24,207.18,36.34455573]
[1731494180197,0.12549,207.24,207.18,36.34455573]
[1731494180713,0.12549,207.26,207.18,36.34455573]
[1731494180914,0.12549,207.24,207.18,36.34455573]
[1731494181516,0.12549,207.23,207.18,36.34455573]
[1731494182019,41.16815573,207.31,207.22,36.34455573]
[1731494182227,4.8236,207.31,207.24,36.34455573]
[1731494182401,0.12549,207.3,207.24,36.34455573]
[1731494183105,4.8236,207.31,207.24,36.34455573]
[1731494183511,4.8236,207.31,207.26,36.34455573]
[1731494183712,0.4858035,207.34,207.26,36.34455573]
[1731494183903,0.4858035,207.34,207.28,36.34455573]
[1731494184104,5.3088035,207.34,207.28,36.34455573]
[1731494184329,0.12549,207.33,207.28,36.34455573]
[1731494184514,4.94889,207.33,207.28,36.34455573]
[1731494185220,24.94889,207.33,207.28,36.34455573]
[1731494185812,0.12549,207.31,207.26,36.34455573]
[1731494186728,4.94919,207.31,207.26,36.34455573]
[1731494187602,23.776884,207.33,207.26,36.34455573]
[1731494187812,0.12549,207.31,207.26,36.34455573]
[1731494188007,0.12549,207.31,207.24,36.34455573]
[1731494188314,23.902374,207.31,207.24,36.34455573]
[1731494188521,60.24692973,207.29,207.22,36.34455573]
[1731494188707,0.12549,207.27,207.22,36.34455573]
[1731494188907,0.12549,207.27,207.21,22.32824961]
[1731494189607,0.12549,207.28,207.23,22.32824961]
[1731494190216,20.0,207.32,207.25,22.32824961]
[1731494190525,0.12549,207.3,207.23,22.32824961]
[1731494190729,4.94939,207.3,207.23,22.32824961]
[1731494192912,20.0,207.28,207.21,22.32824961]
[1731494193229,0.12549,207.26,207.19,22.32824961]
[1731494194229,0.12549,207.26,207.16,15.9163]
[1731494194230,20.12549,207.24,207.16,15.9163]
[1731494194545,23.776884,207.25,207.11,28.48654961]
[1731494194546,20.12549,207.18,207.11,28.48654961]
[1731494194711,20.12549,207.18,207.11,22.32824961]
[1731494194921,0.12549,207.18,207.11,22.32824961]
[1731494195454,0.12549,207.19,207.15,22.32824961]
[1731494196230,46.23062361,207.21,207.11,22.32824961]
[1731494196536,46.23062361,207.21,207.1,20.0]
[1731494196537,46.23062361,207.21,207.13,22.32824961]
[1731494197228,51.05662361,207.21,207.13,22.32824961]
[1731494197444,27.15394961,207.23,207.15,22.32824961]
[1731494197738,0.12549,207.23,207.17,22.32824961]
[1731494200019,0.12549,207.26,207.17,22.32824961]
[1731494200330,23.902374,207.26,207.17,22.32824961]
[1731494200517,0.12549,207.24,207.19,22.32824961]
[1731494200921,0.12549,207.24,207.17,22.32824961]
[1731494201128,4.95079,207.24,207.17,22.32824961]
[1731494202132,4.95079,207.24,207.15,22.32824961]
[1731494203907,0.12549,207.22,207.15,22.32824961]
[1731494204115,0.12549,207.18,207.11,22.32824961]
[1731494204325,0.12549,207.18,207.13,22.32824961]
[1731494204829,0.12549,207.19,207.13,22.32824961]
[1731494205254,24.95199,207.19,207.13,22.32824961]
[1731494206120,0.12549,207.17,207.09,38.31104961]
[1731494207138,22.32824961,207.21,207.11,22.32824961]
[1731494207320,43.776884,207.2,207.13,22.32824961]
[1731494207638,0.12549,207.19,207.13,22.32824961]
[1731494207818,22.32824961,207.23,207.15,22.32824961]
[1731494208018,22.32824961,207.17,207.09,38.31104961]
[1731494208228,0.12549,207.16,207.09,38.31104961]
[1731494208422,22.32824961,207.21,207.13,22.32824961]
[1731494208739,22.32824961,207.23,207.15,22.32824961]
[1731494208918,20.0,207.22,207.15,22.32824961]
[1731494209232,0.12549,207.21,207.15,22.32824961]
[1731494210030,0.12549,207.21,207.13,22.32824961]
[1731494210331,22.45373961,207.21,207.13,22.32824961]
[1731494210544,22.45373961,207.21,207.13,334.32824961]
[1731494211012,0.12549,207.22,207.15,22.32824961]
[1731494211215,20.12549,207.22,207.13,334.32824961]
[1731494211617,0.12549,207.22,207.15,22.32824961]
[1731494212742,70.1,207.35,207.19,22.32824961]
[1731494212743,22.32824961,207.27,207.19,22.32824961]
[1731494212920,22.32824961,207.29,207.19,22.32824961]
[1731494213826,22.32824961,207.29,207.21,22.32824961]
[1731494214047,20.0,207.28,207.21,22.32824961]
[1731494214217,22.45373961,207.27,207.19,22.32824961]
[1731494214735,22.45373961,207.27,207.19,334.32824961]
[1731494216338,27.27853961,207.27,207.17,22.32824961]
[1731494217319,20.12549,207.24,207.17,22.32824961]
[1731494218323,24.95079,207.24,207.17,22.32824961]
[1731494219137,0.12549,207.22,207.13,22.32824961]
[1731494219322,0.12549,207.16,207.1,312.0]
[1731494219518,0.12549,207.16,207.09,38.31104961]
[1731494220042,0.12549,207.16,207.09,22.32824961]
[1731494220334,0.12549,207.14,207.07,22.32824961]
[1731494222524,0.12549,207.14,207.07,334.32824961]
[1731494222743,22.32824961,207.17,207.07,334.32824961]
[1731494222940,20.0,207.16,207.07,334.32824961]
[1731494223325,22.45373961,207.15,207.07,312.0]
[1731494224221,22.45373961,207.15,207.07,334.32824961]
[1731494225334,0.12549,207.12,207.07,312.0]
[1731494226744,22.32824961,207.15,207.07,334.32824961]
[1731494226942,22.32824961,207.21,207.13,22.32824961]
[1731494227323,0.12549,207.2,207.13,22.32824961]
[1731494227550,22.32824961,207.21,207.13,22.32824961]
[1731494228044,22.32824961,207.23,207.15,22.32824961]
[1731494228425,22.32824961,207.23,207.05,23.776884]
[1731494228426,22.32824961,207.17,207.08,22.32824961]
[1731494228626,0.12549,207.11,207.04,38.93084961]
[1731494228833,22.32824961,207.1,207.04,16.6026]
[1731494229735,22.32824961,207.18,207.08,22.32824961]
[1731494230049,6.2404,207.25,207.04,16.6026]
[1731494230050,22.32824961,207.22,207.14,22.32824961]
[1731494230223,0.12549,207.21,207.14,22.32824961]
[1731494230549,22.32824961,207.22,207.14,22.32824961]
[1731494231132,22.32824961,207.24,207.14,22.32824961]
[1731494231348,22.32824961,207.24,207.11,0.1]
[1731494231349,22.32824961,207.24,207.16,22.32824961]
[1731494231746,0.12549,207.23,207.16,22.32824961]
[1731494232635,22.32824961,207.26,207.18,22.32824961]
[1731494232848,22.32824961,207.28,207.2,22.32824961]
[1731494233331,22.32824961,207.26,207.2,312.0]
[1731494233533,0.12549,207.25,207.2,312.0]
[1731494233931,33.39254961,207.3,207.15,16.469]
[1731494233932,0.12549,207.21,207.15,16.469]
[1731494234334,0.12549,207.21,207.16,22.32824961]
[1731494234550,0.12549,207.23,207.16,22.32824961]
[1731494234850,0.12549,207.23,207.18,22.32824961]
[1731494235045,0.12549,207.25,207.18,22.32824961]
[1731494235258,0.12549,207.23,207.16,22.32824961]
[1731494236252,0.12549,207.21,207.15,16.469]
[1731494236458,0.12549,207.21,207.12,22.32824961]
[1731494236749,0.12549,207.17,207.1,28.68374961]
[1731494236950,0.12549,207.17,207.12,312.0]
[1731494237150,22.32824961,207.22,207.14,22.32824961]
[1731494237947,0.12549,207.21,207.14,22.32824961]
[1731494238637,22.32824961,207.2,207.12,22.32824961]
[1731494242350,22.32824961,207.2,207.1,28.68374961]
[1731494242730,22.32824961,207.18,207.1,28.68374961]
[1731494242954,22.32824961,207.16,207.09,16.3868]
[1731494243447,22.32824961,207.18,207.1,22.32824961]
[1731494243642,0.12549,207.17,207.1,22.32824961]
[1731494244036,0.12549,207.15,207.09,16.3868]
[1731494244252,0.12549,207.15,207.05,6.4856]
[1731494244253,22.32824961,207.14,207.06,22.32824961]
[1731494245172,22.32824961,207.1,207.02,22.32824961]
[1731494245330,22.32824961,207.08,207.0,22.32824961]
[1731494245538,0.12549,207.07,207.0,22.32824961]
[1731494245853,22.32824961,207.06,206.99,15.3889]
[1731494246241,22.32824961,207.06,206.98,22.32824961]
[1731494246557,22.32824961,207.1,207.02,22.32824961]
[1731494246735,22.32824961,207.12,207.04,22.32824961]
[1731494246937,22.32824961,207.14,207.06,22.32824961]
[1731494248361,22.32824961,207.14,207.06,334.32824961]
[1731494248838,22.32824961,207.14,207.06,22.32824961]
[1731494251759,22.32824961,207.14,207.08,312.0]
[1731494252141,22.32824961,207.16,207.08,312.0]
[1731494255155,22.32824961,207.14,207.04,37.78414961]
[1731494255369,22.32824961,207.1,207.0,22.32824961]
[1731494255656,22.32824961,207.08,207.0,22.32824961]
[1731494258167,22.32824961,207.08,207.0,334.32824961]
[1731494259354,168.3543,207.19,207.04,22.32824961]
[1731494259686,22.32824961,207.23,207.14,22.32824961]
[1731494260372,6.3474,207.25,207.12,22.32824961]
[1731494260373,22.32824961,207.21,207.12,22.32824961]
[1731494260964,0.12549,207.2,207.12,22.32824961]
[1731494262259,43.902374,207.18,207.1,22.32824961]
[1731494262571,0.12549,207.14,207.08,22.32824961]
[1731494263472,42.45373961,207.17,207.08,22.32824961]
[1731494264266,0.12549,207.14,207.08,22.32824961]
[1731494264448,23.902374,207.14,207.06,22.32824961]
[1731494264651,0.12549,207.1,207.04,22.32824961]
[1731494265160,0.12549,207.1,207.06,22.32824961]
[1731494265476,28.89294961,207.13,207.06,22.32824961]
[1731494265477,6.5647,207.13,207.06,22.32824961]
[1731494265673,22.32824961,207.15,207.0,38.68294961]
[1731494265674,22.32824961,207.15,207.08,22.32824961]
[1731494265852,20.0,207.14,207.06,22.32824961]
[1731494266053,0.12549,207.13,207.08,22.32824961]
[1731494267170,22.32824961,207.17,207.08,22.32824961]
[1731494267375,6.4593,207.18,207.12,22.32824961]
[1731494268167,0.12549,207.17,207.12,22.32824961]
[1731494268358,27.28063961,207.17,207.08,22.32824961]
[1731494268560,22.45373961,207.17,207.1,22.32824961]
[1731494268759,0.12549,207.17,207.1,22.32824961]
[1731494268960,22.45373961,207.17,207.1,22.32824961]
[1731494269363,22.45373961,207.17,207.1,334.32824961]
[1731494269979,0.12549,207.14,207.06,22.32824961]
[1731494272955,20.0,207.16,207.08,334.32824961]
[1731494273597,0.12549,207.15,207.08,334.32824961]
[1731494274174,22.45373961,207.15,207.08,334.32824961]
[1731494274472,22.45373961,207.15,207.08,312.0]
[1731494274678,22.32824961,207.17,207.1,22.32824961]
[1731494274874,6.4593,207.18,207.1,22.32824961]
[1731494275068,0.12549,207.17,207.1,22.32824961]
[1731494275658,6.4089,207.23,207.16,22.32824961]
[1731494275858,22.32824961,207.27,207.18,22.32824961]
[1731494276078,6.4089,207.29,207.18,22.32824961]
[1731494276079,22.32824961,207.25,207.18,22.32824961]
[1731494276272,0.12549,207.24,207.18,22.32824961]
[1731494276466,22.32824961,207.23,207.16,22.32824961]
[1731494276866,0.12549,207.22,207.16,22.32824961]
[1731494277575,0.12549,207.24,207.16,22.32824961]
[1731494277782,0.12549,207.24,207.16,334.32824961]
[1731494277953,0.12549,207.24,207.18,22.32824961]
[1731494278358,11.2332,207.29,207.21,22.32824961]
[1731494278359,28.73714961,207.29,207.21,22.32824961]
[1731494278568,28.73714961,207.29,207.15,0.1]
[1731494278569,6.4089,207.29,207.23,22.32824961]
[1731494279170,0.12549,207.28,207.21,22.32824961]
[1731494279370,0.12549,207.26,207.19,22.32824961]
[1731494280778,0.12549,207.26,207.13,0.1]
[1731494280779,0.12549,207.2,207.13,22.32824961]
[1731494281162,0.12549,207.2,207.11,22.32824961]
[1731494281485,0.12549,207.2,207.11,334.32824961]
[1731494281657,0.12549,207.18,207.11,312.0]
[1731494281860,0.12549,207.14,207.07,22.32824961]
[1731494282056,0.12549,207.14,207.05,22.4802]
[1731494282388,0.12549,207.14,207.07,22.32824961]
[1731494284788,0.12549,207.14,207.05,15.9613]
[1731494284789,0.12549,207.12,207.05,22.32824961]
[1731494285085,0.12549,207.12,207.07,312.0]
[1731494286884,0.12549,207.1,207.07,312.0]
[1731494287063,0.12549,207.1,207.01,22.32824961]
[1731494287263,0.12549,207.08,207.01,22.32824961]
[1731494289369,0.12549,207.06,206.99,22.32824961]
[1731494289667,0.12549,207.04,206.97,22.32824961]
[1731494289867,0.12549,207.04,206.94,23.2396]
[1731494289868,0.12549,207.02,206.95,22.32824961]
[1731494290085,0.12549,207.02,206.99,312.0]
[1731494293582,20.0,207.09,207.01,22.32824961]
[1731494294181,22.45373961,207.08,206.99,22.32824961]
[1731494294576,0.12549,207.05,206.99,22.32824961]
[1731494294772,0.12549,207.05,206.97,22.32824961]
[1731494294984,0.12549,207.03,206.95,22.32824961]
[1731494295171,0.12549,207.03,206.94,23.1396]
[1731494295172,0.12549,207.03,207.01,22.32824961]
[1731494295574,22.32824961,207.1,207.01,22.32824961]
[1731494295778,22.32824961,207.1,207.03,22.32824961]
[1731494296070,0.12549,207.09,207.03,22.32824961]
[1731494297386,0.12549,207.09,207.01,312.0]
[1731494297387,0.12549,207.09,207.01,334.32824961]
[1731494297595,0.12549,207.09,206.97,0.1]
[1731494297596,0.12549,207.07,206.99,22.32824961]
[1731494298090,0.12549,207.03,206.97,22.32824961]
[1731494298993,0.12549,207.03,206.95,22.32824961]
[1731494299372,0.12549,206.99,206.91,22.32824961]
[1731494299969,22.32824961,207.0,206.88,22.32824961]
[1731494299970,0.12549,206.95,206.88,22.32824961]
[1731494300175,0.12549,206.95,206.86,22.32824961]
[1731494300176,0.12549,206.93,206.86,22.32824961]
[1731494301188,22.32824961,206.96,206.88,22.32824961]
[1731494301390,22.32824961,206.98,206.9,22.32824961]
[1731494301985,0.12549,206.97,206.9,22.32824961]
[1731494302189,0.12549,206.95,206.88,22.32824961]
[1731494302484,22.32824961,207.0,206.85,333.6684]
[1731494302485,0.12549,206.93,206.86,22.32824961]
[1731494303602,22.32824961,206.96,206.88,22.32824961]
[1731494304180,22.32824961,207.0,206.92,22.32824961]
[1731494304591,22.32824961,207.0,206.85,21.7684]
[1731494304592,22.32824961,206.98,206.9,22.32824961]
[1731494304788,0.12549,206.97,206.9,22.32824961]
[1731494304998,22.32824961,206.98,206.9,22.32824961]
[1731494305800,0.12549,206.97,206.9,22.32824961]
[1731494306995,0.12549,206.97,206.9,334.32824961]
[1731494308796,0.12549,206.97,206.9,312.0]
[1731494309093,0.12549,206.95,206.89,20.0]
[1731494309804,0.12549,206.97,206.89,20.0]
[1731494311977,0.12549,206.97,206.89,332.0]
[1731494312294,0.12549,206.91,206.84,22.32824961]
[1731494312604,0.12549,206.89,206.82,22.32824961]
[1731494312908,0.12549,206.89,206.82,14.00347447]
[1731494314010,0.12549,206.89,206.8,16.5461]
[1731494314011,0.12549,206.89,206.84,14.00347447]
[1731494314891,0.12549,206.89,206.82,22.40523327]
[1731494315098,0.12549,206.89,206.82,334.40523327]
[1731494316805,0.12549,206.89,206.82,312.0]
[1731494317108,0.12549,206.89,206.76,22.40523327]
[1731494317109,0.12549,206.82,206.76,22.40523327]
[1731494317482,22.40523327,206.9,206.71,22.40523327]
[1731494317483,0.12549,206.78,206.71,22.40523327]
[1731494317983,22.53072327,206.78,206.71,22.40523327]
[1731494318182,22.53072327,206.78,206.63,0.5858035]
[1731494318183,0.12549,206.73,206.66,22.40523327]
[1731494318382,22.40523327,206.76,206.68,22.40523327]
[1731494318804,0.12549,206.75,206.68,22.40523327]
[1731494318996,22.53072327,206.75,206.67,22.40523327]
[1731494319180,0.12549,206.73,206.66,22.40523327]
[1731494319905,0.12549,206.73,206.67,312.0]
[1731494320113,0.12549,206.72,206.67,312.0]
[1731494320909,0.12549,206.73,206.67,312.0]
[1731494321090,23.776884,206.81,206.72,22.40523327]
[1731494321404,0.12549,206.78,206.71,22.40523327]
[1731494321616,0.12549,206.78,206.72,22.40523327]
[1731494321793,22.40523327,206.79,206.72,22.40523327]
[1731494322106,22.40523327,206.81,206.73,22.40523327]
[1731494322298,22.40523327,206.86,206.78,22.40523327]
[1731494322711,22.40523327,206.86,206.7,22.50523327]
[1731494322712,22.40523327,206.84,206.76,22.40523327]
[1731494323406,0.12549,206.81,206.75,20.0]
[1731494324399,0.12549,206.81,206.75,332.0]
[1731494326220,29.04683327,206.88,206.8,22.40523327]
[1731494326516,22.40523327,206.92,206.84,22.40523327]
[1731494326729,22.40523327,206.92,206.77,0.1]
[1731494326730,22.40523327,206.9,206.82,22.40523327]
[1731494327913,0.12549,206.89,206.82,22.40523327]
[1731494329103,0.12549,206.89,206.82,334.40523327]
[1731494332116,0.12549,206.89,206.78,22.40523327]
[1731494332117,22.40523327,206.86,206.78,22.40523327]
[1731494332422,0.12549,206.85,206.76,22.40523327]
[1731494333612,0.12549,206.85,206.78,22.40523327]
[1731494334909,27.23853327,206.9,206.74,16.4708]
[1731494334910,0.12549,206.83,206.76,22.40523327]
[1731494335109,0.12549,206.83,206.78,312.0]